fUST/lending_fUST_20250820
["ID","MTS","AMOUNT","RATE_DAILY","PERIOD"]
[380243739,1755624639122,-480.0,0.00019178,2]
[380243740,1755624639132,-463.16165257,0.00019178,2]
[380243741,1755624639142,-480.0,0.00019178,2]
[380243742,1755624639151,-460.0,0.00019178,2]
[380243743,1755624639161,-480.0,0.00019178,2]
[380243744,1755624639170,-360.0,0.00019178,2]
[380243745,1755624639179,-519.42532935,0.00019178,2]
[380243746,1755624639188,-500.0,0.00019178,2]
[380243747,1755624639197,-480.0,0.00019178,2]
[380243748,1755624639206,-480.0,0.00019178,2]
[380243749,1755624639216,-480.0,0.00019178,2]
[380243750,1755624639225,-480.0,0.00019178,2]
[380243751,1755624639235,-480.0,0.00019178,2]
[380243752,1755624639244,-480.0,0.00019178,2]
[380243753,1755624639254,-480.0,0.00019178,2]
[380243754,1755624639264,-480.0,0.00019178,2]
[380243755,1755624639273,-480.0,0.00019178,2]
[380243756,1755624639282,-480.0,0.00019178,2]
[380243757,1755624639291,-481.75551875,0.00019178,2]
[380243758,1755624639301,-480.0,0.00019178,2]
[380243759,1755624639310,-480.0,0.00019178,2]
[380243760,1755624639319,-480.0,0.00019178,2]
[380243761,1755624639329,-421.16946416,0.00019178,2]
[380243762,1755624639338,-480.0,0.00019178,2]
[380243763,1755624639347,-480.0,0.00019178,2]
[380243764,1755624639357,-480.0,0.00019178,2]
[380243765,1755624639366,-480.0,0.00019178,2]
[380243766,1755624639375,-480.0,0.00019178,2]
[380243767,1755624639385,-526.37784654,0.00019178,2]
[380243768,1755624639394,-480.0,0.00019178,2]
[380243769,1755624639403,-480.0,0.00019178,2]
[380243770,1755624639413,-480.0,0.00019178,2]
[380243771,1755624639422,-480.0,0.00019178,2]
[380243772,1755624639431,-480.0,0.00019178,2]
[380243773,1755624639440,-480.0,0.00019178,2]
[380243774,1755624639449,-480.0,0.00019178,2]
[380243775,1755624639458,-196.59976084,0.00019178,2]
[380243776,1755624639468,-480.0,0.00019178,2]
[380243777,1755624639477,-480.0,0.00019178,2]
[380243778,1755624639486,-480.0,0.00019178,2]
[380243779,1755624639495,-480.0,0.00019178,2]
[380243780,1755624639505,-480.0,0.00019178,2]
[380243781,1755624639515,-480.0,0.00019178,2]
[380243782,1755624639524,-480.0,0.00019178,2]
[380243783,1755624639533,-480.0,0.00019178,2]
[380243784,1755624639542,-480.0,0.00019178,2]
[380243785,1755624639551,-480.0,0.00019178,2]
[380243786,1755624639560,-480.0,0.00019178,2]
[380243787,1755624639570,-480.0,0.00019178,2]
[380243788,1755624639579,-480.0,0.00019178,2]
[380243789,1755624639588,-480.0,0.00019178,2]
[380243790,1755624639598,-480.0,0.00019178,2]
[380243791,1755624639606,-480.0,0.00019178,2]
[380243792,1755624639616,-480.0,0.00019178,2]
[380243793,1755624639625,-480.0,0.00019178,2]
[380243794,1755624639634,-388.76,0.00019178,2]
[380243795,1755624639643,-480.0,0.00019178,2]
[380243796,1755624639652,-480.0,0.00019178,2]
[380243797,1755624639661,-610.16,0.00019178,2]
[380243798,1755624639670,-480.0,0.00019178,2]
[380243799,1755624639679,-480.0,0.00019178,2]
[380243800,1755624639689,-480.0,0.00019178,2]
[380243801,1755624639698,-480.0,0.00019178,2]
[380243802,1755624639707,-480.0,0.00019178,2]
[380243803,1755624639717,-480.0,0.00019178,2]
[380243804,1755624639730,-480.0,0.00019178,2]
[380243805,1755624639740,-480.0,0.00019178,2]
[380243806,1755624639750,-467.15239721,0.00019178,2]
[380243807,1755624639761,-480.0,0.00019178,2]
[380243808,1755624639771,-480.0,0.00019178,2]
[380243809,1755624639780,-480.0,0.00019178,2]
[380243810,1755624639789,-480.0,0.00019178,2]
[380243811,1755624639799,-480.0,0.00019178,2]
[380243812,1755624639809,-1214.35,0.00019178,2]
[380243813,1755624639819,-480.0,0.00019178,2]
[380243814,1755624639828,-480.0,0.00019178,2]
[380243815,1755624639837,-480.0,0.00019178,2]
[380243816,1755624639848,-480.0,0.00019178,2]
[380243818,1755624639857,-480.0,0.00019178,2]
[380243819,1755624639866,-245.33008322,0.00019178,2]
[380243820,1755624639875,-480.0,0.00019178,2]
[380243821,1755624639884,-480.0,0.00019178,2]
[380243822,1755624639894,-480.94861762,0.00019178,2]
[380243823,1755624639904,-480.0,0.00019178,2]
[380243824,1755624639913,-480.0,0.00019178,2]
[380243825,1755624639922,-480.0,0.00019178,2]
[380243826,1755624639932,-480.0,0.00019178,2]
[380243828,1755624639941,-480.0,0.00019178,2]
[380243829,1755624639951,-500.75,0.00019178,2]
[380243831,1755624639960,-480.0,0.00019178,2]
[380243832,1755624639970,-480.0,0.00019178,2]
[380243833,1755624639979,-480.0,0.00019178,2]
[380243834,1755624639988,-480.0,0.00019178,2]
[380243835,1755624639997,-480.0,0.00019178,2]
[380243836,1755624640007,-480.0,0.00019178,2]
[380243838,1755624640017,-480.0,0.00019178,2]
[380243839,1755624640026,-480.0,0.00019178,2]
[380243840,1755624640035,-480.0,0.00019178,2]
[380243841,1755624640045,-480.0,0.00019178,2]
[380243842,1755624640054,-480.0,0.00019178,2]
[380243843,1755624640063,-480.0,0.00019178,2]
[380243845,1755624640072,-480.0,0.00019178,2]
[380243846,1755624640081,-480.0,0.00019178,2]
[380243847,1755624640091,-480.0,0.00019178,2]
[380243848,1755624640101,-3107.07,0.00019178,2]
[380243849,1755624640110,-480.0,0.00019178,2]
[380243851,1755624640119,-155.83667145,0.00019178,2]
[380243852,1755624640129,-480.0,0.00019178,2]
[380243853,1755624640140,-350.89702972,0.00019178,2]
[380243854,1755624640150,-480.0,0.00019178,2]
[380243855,1755624640160,-460.90693209,0.00019178,2]
[380243856,1755624640170,-480.0,0.00019178,2]
[380243858,1755624640187,-480.0,0.00019178,2]
[380243860,1755624640343,-480.0,0.00019178,2]
[380243861,1755624640356,-480.0,0.00019178,2]
[380243862,1755624640366,-480.0,0.00019178,2]
[380243863,1755624640375,-480.0,0.00019178,2]
[380243864,1755624640384,-480.0,0.00019178,2]
[380243865,1755624640393,-410.57039772,0.00019178,2]
[380243866,1755624640402,-480.0,0.00019178,2]
[380243867,1755624640411,-501.74,0.00019178,2]
[380243868,1755624640421,-480.0,0.00019178,2]
[380243869,1755624640430,-480.0,0.00019178,2]
[380243870,1755624640439,-480.0,0.00019178,2]
[380243871,1755624640449,-480.0,0.00019178,2]
[380243872,1755624640458,-480.0,0.00019178,2]
[380243873,1755624640467,-472.28452597,0.00019178,2]
[380243874,1755624640477,-480.0,0.00019178,2]
[380243875,1755624640486,-807.61,0.00019178,2]
[380243876,1755624640495,-480.0,0.00019178,2]
[380243877,1755624640505,-480.0,0.00019178,2]
[380243878,1755624640514,-480.0,0.00019178,2]
[380243879,1755624640523,-480.0,0.00019178,2]
[380243880,1755624640532,-480.0,0.00019178,2]
[380243881,1755624640541,-480.0,0.00019178,2]
[380243882,1755624640550,-1593.38,0.00019178,2]
[380243883,1755624640559,-480.0,0.00019178,2]
[380243884,1755624640569,-480.0,0.00019178,2]
[380243885,1755624640578,-480.0,0.00019178,2]
[380243886,1755624640587,-480.0,0.00019178,2]
[380243887,1755624640596,-480.0,0.00019178,2]
[380243888,1755624640605,-480.0,0.00019178,2]
[380243889,1755624640614,-480.0,0.00019178,2]
[380243890,1755624640623,-480.0,0.00019178,2]
[380243891,1755624640632,-238.74418226,0.00019178,2]
[380243892,1755624640641,-480.0,0.00019178,2]
[380243893,1755624640650,-480.0,0.00019178,2]
[380243894,1755624640659,-480.0,0.00019178,2]
[380243895,1755624640668,-480.0,0.00019178,2]
[380243896,1755624640677,-480.0,0.00019178,2]
[380243897,1755624640687,-480.0,0.00019178,2]
[380243898,1755624640696,-480.0,0.00019178,2]
[380243899,1755624640705,-480.0,0.00019178,2]
[380243900,1755624640714,-480.0,0.00019178,2]
[380243901,1755624640725,-480.0,0.00019178,2]
[380243902,1755624640736,-377.19359261,0.00019178,2]
[380243903,1755624640745,-219.84537016,0.00019178,2]
[380243904,1755624640755,-480.0,0.00019178,2]
[380243905,1755624640764,-480.0,0.00019178,2]
[380243906,1755624640774,-480.0,0.00019178,2]
[380243907,1755624640783,-480.0,0.00019178,2]
[380243908,1755624640792,-480.0,0.00019178,2]
[380243909,1755624640802,-1462.89,0.00019178,2]
[380243910,1755624640812,-480.0,0.00019178,2]
[380243911,1755624640821,-480.0,0.00019178,2]
[380243912,1755624640833,-500.0,0.00019178,2]
[380243913,1755624640842,-171.80527549,0.00019178,2]
[380243914,1755624640852,-480.0,0.00019178,2]
[380243915,1755624640861,-666.0,0.00019178,2]
[380243916,1755624640871,-50000.0,0.00019178,2]
[380243917,1755624640880,-1037.42019117,0.000192,2]
[380243918,1755624640889,-1584.97264948,0.00019252,2]
[380243919,1755624640898,-2984.75089081,0.00019252,2]
[380243920,1755624640907,-100000.0,0.00019329,2]
[380243921,1755624640916,-370000.0,0.00019352,2]
[380243922,1755624640926,-2470.06779211,0.00019352,2]
[380243923,1755624640935,-450.0,0.00019373,2]
[380243924,1755624640944,-500.0,0.00019373,2]
[380243925,1755624640953,-500.0,0.00019373,2]
[380243926,1755624640963,-500.0,0.00019373,2]
[380243927,1755624640972,-500.0,0.00019373,2]
[380243928,1755624640982,-500.0,0.00019373,2]
[380243929,1755624640991,-500.0,0.00019373,2]
[380243930,1755624641000,-500.0,0.00019373,2]
[380243931,1755624641010,-480.0,0.00019452,2]
[380243932,1755624641020,-480.0,0.00019452,2]
[380243933,1755624641030,-537.17317756,0.00019452,2]
[380243934,1755624641040,-480.0,0.00019452,2]
[380243935,1755624641050,-480.0,0.00019452,2]
[380243936,1755624641060,-480.0,0.00019452,2]
[380243937,1755624641070,-595.6,0.00019452,2]
[380243938,1755624641080,-480.0,0.00019452,2]
[380243939,1755624641089,-571.37,0.00019452,2]
[380243940,1755624641099,-480.0,0.00019452,2]
[380243941,1755624641108,-480.0,0.00019452,2]
[380243942,1755624641118,-480.0,0.00019452,2]
[380243943,1755624641127,-1828.44,0.00019452,2]
[380243944,1755624641136,-480.0,0.00019452,2]
[380243945,1755624641146,-480.0,0.00019452,2]
[380243946,1755624641156,-440.0,0.00019452,2]
[380243947,1755624641165,-480.0,0.00019452,2]
[380243948,1755624641175,-312.79,0.00019452,2]
[380243949,1755624641184,-480.0,0.00019452,2]
[380243950,1755624641193,-480.0,0.00019452,2]
[380243951,1755624641203,-480.0,0.00019452,2]
[380243952,1755624641212,-480.0,0.00019452,2]
[380243953,1755624641221,-363.16903478,0.00019452,2]
[380243954,1755624641231,-236.22605462,0.00019452,2]
[380243955,1755624641241,-480.0,0.00019452,2]
[380243956,1755624641250,-480.0,0.00019452,2]
[380243957,1755624641259,-537.0,0.00019452,2]
[380243958,1755624641268,-480.0,0.00019452,2]
[380243959,1755624641278,-480.0,0.00019452,2]
[380243960,1755624641287,-480.0,0.00019452,2]
[380243961,1755624641296,-480.0,0.00019452,2]
[380243962,1755624641306,-480.0,0.00019452,2]
[380243963,1755624641316,-479.95525206,0.00019452,2]
[380243964,1755624641325,-480.0,0.00019452,2]
[380243965,1755624641335,-421.36846241,0.00019452,2]
[380243966,1755624641345,-480.0,0.00019452,2]
[380243967,1755624641355,-480.0,0.00019452,2]
[380243968,1755624641364,-480.0,0.00019452,2]
[380243969,1755624641374,-480.0,0.00019452,2]
[380243970,1755624641384,-480.0,0.00019452,2]
[380243971,1755624641393,-480.0,0.00019452,2]
[380243972,1755624641403,-480.0,0.00019452,2]
[380243973,1755624641412,-480.0,0.00019452,2]
[380243974,1755624641421,-568.44,0.00019452,2]
[380243975,1755624641430,-480.0,0.00019452,2]
[380243976,1755624641441,-413.59520673,0.00019452,2]
[380243977,1755624641450,-610.16,0.00019452,2]
[380243978,1755624641459,-480.0,0.00019452,2]
[380243979,1755624641468,-480.0,0.00019452,2]
[380243980,1755624641477,-480.0,0.00019452,2]
[380243981,1755624641486,-480.0,0.00019452,2]
[380243982,1755624641495,-480.0,0.00019452,2]
[380243983,1755624641504,-1214.35,0.00019452,2]
[380243984,1755624641514,-480.0,0.00019452,2]
[380243985,1755624641523,-480.0,0.00019452,2]
[380243986,1755624641532,-480.0,0.00019452,2]
[380243987,1755624641541,-480.0,0.00019452,2]
[380243988,1755624641550,-480.0,0.00019452,2]
[380243989,1755624641559,-480.0,0.00019452,2]
[380243990,1755624641568,-480.0,0.00019452,2]
[380243991,1755624641577,-480.0,0.00019452,2]
[380243992,1755624641586,-489.98,0.00019452,2]
[380243993,1755624641595,-500.75,0.00019452,2]
[380243994,1755624641604,-480.0,0.00019452,2]
[380243995,1755624641614,-303.09042362,0.00019452,2]
[380243996,1755624641623,-197.67,0.00019452,2]
[380243997,1755624641632,-480.0,0.00019452,2]
[380243998,1755624641641,-629.06902461,0.00019452,2]
[380243999,1755624641651,-480.0,0.00019452,2]
[380244000,1755624641660,-480.0,0.00019452,2]
[380244001,1755624641669,-3107.07,0.00019452,2]
[380244002,1755624641678,-480.0,0.00019452,2]
[380244003,1755624641688,-480.0,0.00019452,2]
[380244004,1755624641697,-480.0,0.00019452,2]
[380244005,1755624641706,-480.0,0.00019452,2]
[380244006,1755624641716,-480.0,0.00019452,2]
[380244007,1755624641729,-480.0,0.00019452,2]
[380244008,1755624641738,-480.0,0.00019452,2]
[380244009,1755624641747,-501.74,0.00019452,2]
[380244010,1755624641758,-480.0,0.00019452,2]
[380244011,1755624641768,-480.0,0.00019452,2]
[380244012,1755624641778,-480.0,0.00019452,2]
[380244013,1755624641787,-480.0,0.00019452,2]
[380244014,1755624641797,-807.61,0.00019452,2]
[380244015,1755624641808,-480.0,0.00019452,2]
[380244016,1755624641819,-480.0,0.00019452,2]
[380244017,1755624641828,-211.35,0.00019452,2]
[380244018,1755624641837,-480.0,0.00019452,2]
[380244019,1755624641847,-1593.38,0.00019452,2]
[380244020,1755624641856,-480.0,0.00019452,2]
[380244021,1755624641866,-248.12253601,0.00019452,2]
[380244022,1755624641874,-480.0,0.00019452,2]
[380244023,1755624641884,-220.68420263,0.00019452,2]
[380244024,1755624641893,-480.0,0.00019452,2]
[380244025,1755624641902,-480.0,0.00019452,2]
[380244026,1755624641911,-480.0,0.00019452,2]
[380244027,1755624641920,-480.0,0.00019452,2]
[380244028,1755624641929,-480.0,0.00019452,2]
[380244029,1755624641938,-392.66,0.00019452,2]
[380244030,1755624641947,-1462.89,0.00019452,2]
[380244031,1755624641959,-282.65,0.00019452,2]
[380244032,1755624641971,-308.0,0.000195,2]
[380244033,1755624641980,-311.14434572,0.0001954,2]
[380244034,1755624641989,-300.0,0.00019561,20]
[380244035,1755624641999,-300.0,0.00019561,20]
[380244036,1755624642009,-300.0,0.00019561,20]
[380244037,1755624642018,-300.0,0.00019561,20]
[380244038,1755624642027,-300.0,0.00019561,20]
[380244039,1755624642037,-300.0,0.00019561,20]
[380244040,1755624642046,-300.0,0.00019561,20]
[380244041,1755624642055,-300.0,0.00019561,20]
[380244042,1755624642065,-300.0,0.00019561,20]
[380244043,1755624642074,-300.0,0.00019561,20]
[380244044,1755624642083,-300.0,0.00019561,20]
[380244045,1755624642092,-300.0,0.00019561,20]
[380244046,1755624642101,-300.0,0.00019561,20]
[380244047,1755624642114,-300.0,0.00019561,20]
[380244048,1755624642123,-300.0,0.00019561,20]
[380244049,1755624642132,-600.0,0.00019561,20]
[380244050,1755624642141,-1000.0,0.00019626,2]
[380244051,1755624642150,-480.0,0.00019726,2]
[380244052,1755624642159,-480.0,0.00019726,2]
[380244053,1755624642168,-480.0,0.00019726,2]
[380244054,1755624642178,-480.0,0.00019726,2]
[380244055,1755624642187,-1828.44,0.00019726,2]
[380244056,1755624642196,-480.0,0.00019726,2]
[380244057,1755624642205,-480.0,0.00019726,2]
[380244058,1755624642214,-480.0,0.00019726,2]
[380244059,1755624642223,-582.3071913,0.00019726,2]
[380244060,1755624642232,-363.12,0.00019726,2]
[380244061,1755624642241,-480.0,0.00019726,2]
[380244062,1755624642251,-480.0,0.00019726,2]
[380244063,1755624642262,-480.0,0.00019726,2]
[380244064,1755624642271,-208.45,0.00019726,2]
[380244065,1755624642280,-480.0,0.00019726,2]
[380244066,1755624642289,-298.6494765,0.00019726,2]
[380244067,1755624642298,-514.8,0.00019726,2]
[380244068,1755624642307,-402.63,0.00019726,2]
[380244069,1755624642316,-480.0,0.00019726,2]
[380244070,1755624642325,-480.0,0.00019726,2]
[380244071,1755624642334,-480.0,0.00019726,2]
[380244072,1755624642343,-228.91543389,0.00019726,2]
[380244073,1755624642352,-480.0,0.00019726,2]
[380244074,1755624642361,-542.5,0.00019726,2]
[380244075,1755624642370,-610.16,0.00019726,2]
[380244076,1755624642379,-480.0,0.00019726,2]
[380244077,1755624642388,-480.0,0.00019726,2]
[380244078,1755624642397,-480.0,0.00019726,2]
[380244079,1755624642406,-1214.35,0.00019726,2]
[380244080,1755624642415,-480.0,0.00019726,2]
[380244081,1755624642424,-433.65457108,0.00019726,2]
[380244082,1755624642433,-480.0,0.00019726,2]
[380244083,1755624642442,-194.79652405,0.00019726,2]
[380244084,1755624642451,-480.0,0.00019726,2]
[380244085,1755624642460,-480.0,0.00019726,2]
[380244086,1755624642469,-480.0,0.00019726,2]
[380244087,1755624642479,-500.75,0.00019726,2]
[380244088,1755624642488,-480.0,0.00019726,2]
[380244089,1755624642497,-480.0,0.00019726,2]
[380244090,1755624642508,-480.0,0.00019726,2]
[380244091,1755624642517,-3107.07,0.00019726,2]
[380244092,1755624642526,-480.0,0.00019726,2]
[380244093,1755624642535,-480.0,0.00019726,2]
[380244094,1755624642544,-480.0,0.00019726,2]
[380244095,1755624642553,-480.0,0.00019726,2]
[380244096,1755624642562,-480.0,0.00019726,2]
[380244097,1755624642572,-480.0,0.00019726,2]
[380244098,1755624642581,-480.0,0.00019726,2]
[380244099,1755624642591,-501.74,0.00019726,2]
[380244100,1755624642600,-480.0,0.00019726,2]
[380244101,1755624642609,-480.0,0.00019726,2]
[380244102,1755624642618,-480.0,0.00019726,2]
[380244103,1755624642627,-480.0,0.00019726,2]
[380244104,1755624642637,-807.61,0.00019726,2]
[380244105,1755624642646,-480.0,0.00019726,2]
[380244106,1755624642658,-480.0,0.00019726,2]
[380244107,1755624642671,-480.0,0.00019726,2]
[380244108,1755624642681,-1593.38,0.00019726,2]
[380244109,1755624642690,-480.0,0.00019726,2]
[380244110,1755624642699,-480.0,0.00019726,2]
[380244111,1755624642708,-480.0,0.00019726,2]
[380244112,1755624642718,-480.0,0.00019726,2]
[380244113,1755624642733,-480.0,0.00019726,2]
[380244114,1755624642742,-480.0,0.00019726,2]
[380244115,1755624642752,-1462.89,0.00019726,2]
[380244116,1755624642763,-369.167755,0.00019863,2]
[380244117,1755624642772,-6633.23435849,0.000199,2]
[380244118,1755624642782,-1000.0,0.00019921,2]
[380244119,1755624642791,-1000.0,0.00019921,2]
[380244120,1755624642804,-1000.0,0.00019921,2]
[380244121,1755624642813,-1000.0,0.00019921,2]
[380244122,1755624642824,-231.35298868,0.0002,2]
[380244123,1755624642834,-1000.0,0.0002,2]
[380244124,1755624642843,-503.11,0.0002,2]
[380244125,1755624642852,-480.0,0.0002,2]
[380244126,1755624642861,-480.0,0.0002,2]
[380244127,1755624642870,-446.16948039,0.0002,2]
[380244128,1755624642880,-1828.44,0.0002,2]
[380244129,1755624642890,-480.0,0.0002,2]
[380244130,1755624642899,-480.0,0.0002,2]
[380244131,1755624642908,-480.0,0.0002,2]
[380244132,1755624642916,-208.14392805,0.0002,2]
[380244133,1755624642925,-480.0,0.0002,2]
[380244134,1755624642935,-480.0,0.0002,2]
[380244135,1755624642944,-480.0,0.0002,2]
[380244136,1755624642953,-480.0,0.0002,2]
[380244137,1755624642963,-480.0,0.0002,2]
[380244138,1755624642972,-480.0,0.0002,2]
[380244139,1755624642981,-480.0,0.0002,2]
[380244140,1755624642991,-610.16,0.0002,2]
[380244141,1755624643000,-480.0,0.0002,2]
[380244142,1755624643011,-480.0,0.0002,2]
[380244143,1755624643020,-480.0,0.0002,2]
[380244144,1755624643030,-1214.35,0.0002,2]
[380244145,1755624643039,-480.0,0.0002,2]
[380244146,1755624643049,-480.0,0.0002,2]
[380244147,1755624643058,-480.0,0.0002,2]
[380244148,1755624643067,-480.0,0.0002,2]
[380244149,1755624643076,-500.75,0.0002,2]
[380244150,1755624643085,-14419.92760256,0.0002,2]
[380244151,1755624643094,-56137.65722942,0.0002,2]
[380244152,1755624643103,-364.55269114,0.0002,2]
[380244153,1755624643112,-12622.87158752,0.0002,2]
[380244154,1755624643121,-480.0,0.0002,2]
[380244155,1755624643130,-3384.73014649,0.0002,2]
[380244156,1755624643139,-480.0,0.0002,2]
[380244157,1755624643148,-480.0,0.0002,2]
[380244158,1755624643157,-550.33314412,0.0002,2]
[380244159,1755624643166,-3107.07,0.0002,2]
[380244160,1755624643175,-356.52,0.0002,2]
[380244161,1755624643184,-480.0,0.0002,2]
[380244162,1755624643193,-480.0,0.0002,2]
[380244163,1755624643202,-480.0,0.0002,2]
[380244164,1755624643211,-480.0,0.0002,2]
[380244165,1755624643220,-480.0,0.0002,2]
[380244166,1755624643230,-501.74,0.0002,2]
[380244167,1755624643239,-480.0,0.0002,2]
[380244168,1755624643249,-480.0,0.0002,2]
[380244169,1755624643260,-480.0,0.0002,2]
[380244170,1755624643269,-807.61,0.0002,2]
[380244171,1755624643278,-377.72085181,0.0002,2]
[380244172,1755624643287,-592.61,0.0002,2]
[380244173,1755624643296,-1593.38,0.0002,2]
[380244174,1755624643304,-480.0,0.0002,2]
[380244175,1755624643313,-480.0,0.0002,2]
[380244176,1755624643323,-480.0,0.0002,2]
[380244177,1755624643331,-480.0,0.0002,2]
[380244179,1755624643341,-480.0,0.0002,2]
[380244181,1755624643350,-480.0,0.0002,2]
[380244183,1755624643359,-1462.89,0.0002,2]
[380244185,1755624643368,-1584.97264948,0.0002003,2]
[380244186,1755624643378,-358.339951,0.00020187,2]
[380244187,1755624643387,-890.81966432,0.00020189,2]
[380244188,1755624643397,-586.54229057,0.00020273,2]
[380244189,1755624643406,-480.0,0.00020273,2]
[380244190,1755624643415,-1828.44,0.00020273,2]
[380244191,1755624643425,-480.0,0.00020273,2]
[380244192,1755624643434,-562.85802889,0.00020273,2]
[380244193,1755624643443,-480.0,0.00020273,2]
[380244194,1755624643452,-581.69378739,0.00020273,2]
[380244195,1755624643461,-480.0,0.00020273,2]
[380244196,1755624643470,-480.0,0.00020273,2]
[380244197,1755624643479,-480.0,0.00020273,2]
[380244198,1755624643488,-480.0,0.00020273,2]
[380244199,1755624643497,-480.0,0.00020273,2]
[380244200,1755624643506,-351.16283463,0.00020273,2]
[380244201,1755624643515,-610.16,0.00020273,2]
[380244202,1755624643524,-480.0,0.00020273,2]
[380244203,1755624643534,-480.0,0.00020273,2]
[380244204,1755624643543,-480.0,0.00020273,2]
[380244205,1755624643552,-1214.35,0.00020273,2]
[380244206,1755624643561,-480.0,0.00020273,2]
[380244207,1755624643570,-480.0,0.00020273,2]
[380244208,1755624643579,-480.0,0.00020273,2]
[380244209,1755624643588,-500.75,0.00020273,2]
[380244210,1755624643597,-480.0,0.00020273,2]
[380244211,1755624643606,-480.0,0.00020273,2]
[380244212,1755624643615,-480.0,0.00020273,2]
[380244213,1755624643624,-3107.07,0.00020273,2]
[380244214,1755624643633,-480.0,0.00020273,2]
[380244215,1755624643642,-616.42868402,0.00020273,2]
[380244216,1755624643651,-480.0,0.00020273,2]
[380244217,1755624643660,-214.62983697,0.00020273,2]
[380244218,1755624643670,-542.03883267,0.00020273,2]
[380244219,1755624643679,-501.74,0.00020273,2]
[380244220,1755624643688,-480.0,0.00020273,2]
[380244221,1755624643697,-480.0,0.00020273,2]
[380244222,1755624643706,-480.0,0.00020273,2]
[380244223,1755624643716,-807.61,0.00020273,2]
[380244224,1755624643726,-1593.38,0.00020273,2]
[380244225,1755624643737,-480.0,0.00020273,2]
[380244226,1755624643746,-480.0,0.00020273,2]
[380244227,1755624643755,-480.0,0.00020273,2]
[380244228,1755624643764,-480.0,0.00020273,2]
[380244229,1755624643773,-480.0,0.00020273,2]
[380244230,1755624643782,-480.0,0.00020273,2]
[380244231,1755624643792,-1462.89,0.00020273,2]
[380244232,1755624643802,-6633.2343584,0.00020313,2]
[380244233,1755624643938,-1500.0,0.00020468,2]
[380244234,1755624643947,-1500.0,0.00020468,2]
[380244235,1755624643956,-1500.0,0.00020468,2]
[380244236,1755624643965,-1500.0,0.00020468,2]
[380244237,1755624643974,-480.0,0.00020547,2]
[380244238,1755624643983,-1828.44,0.00020547,2]
[380244239,1755624643992,-480.0,0.00020547,2]
[380244240,1755624644001,-480.0,0.00020547,2]
[380244241,1755624644011,-480.0,0.00020547,2]
[380244242,1755624644020,-480.0,0.00020547,2]
[380244243,1755624644029,-480.0,0.00020547,2]
[380244244,1755624644039,-480.0,0.00020547,2]
[380244245,1755624644048,-480.0,0.00020547,2]
[380244246,1755624644058,-610.16,0.00020547,2]
[380244247,1755624644067,-480.0,0.00020547,2]
[380244248,1755624644076,-480.0,0.00020547,2]
[380244249,1755624644085,-480.0,0.00020547,2]
[380244250,1755624644094,-1214.35,0.00020547,2]